[Event "8th Montevideo Open 2025"]
[Site "Montevideo"]
[Date "2025.02.06"]
[Round "6.1"]
[White "Coro, Lucas"]
[Black "Vazquez, Facundo"]
[Result "1/2-1/2"]
[Annotator "TA"]
[ECO "B42"]
[WhiteElo "2415"]
[BlackElo "2404"]
[PlyCount "54"]
[EventDate "2025.02.01"]
[EventType "swiss"]
[EventCountry "URU"]
[SourceTitle "playchess.com"]
[Source "ChessBase"]
[SourceQuality "1"]
[TimeControl "5400+30"]

{[%evp 18,54,12,37,29,18,33,44,40,40,39,42,48,41,37,41,46,40,36,30,43,24,36,34,66,70,78,54,69,67,73,68,64,17,27,0,0,-208,0]} 1. e4 {[%emt 0:08:07]} c5 {[%emt 0:00:12]} 2. Nf3 {[%emt 0:00:04]} e6 {[%emt 0:00:10]} 3. d4 {[%emt 0:00:04]} cxd4 {[%emt 0:00:11]} 4. Nxd4 {[%emt 0:00:04]} a6 {[%emt 0:00:20]} 5. Bd3 {[%emt 0:00:08]} Bc5 {[%emt 0:00:43]} 6. Nb3 {[%emt 0:00:06]} Ba7 {[%emt 0:00:08]} 7. Qe2 {[%emt 0:00:23]} Ne7 {[%emt 0:03:40]} 8. Be3 {[%emt 0:00:09]} Nbc6 {[%emt 0:03:36]} 9. O-O {[%emt 0:01:14]} Bxe3 {[%emt 0:10:59]} 10. Qxe3 {[%emt 0:00:11]} d5 {[%emt 0:00:52] B42: Sicilian: Kan Variation: 5 Bd3.} 11. e5 {[%emt 0:05:05]} Qc7 {[%emt 0:03:33]} 12. f4 {[%emt 0:06:33]} Nb4 {[%emt 0:10:01] White is slightly better.} 13. Nc3 {[%emt 0:05:58]} Bd7 {[%emt 0:02:47]} 14. Rac1 $146 {[%emt 0:07:40]} (14. Rae1 Rc8 15. a3 Nbc6 16. Kh1 h5 17. Ne2 b5 18. c3 g6 19. Ned4 Na5 20. Nd2 {1-0 Leon Hoyos,M (2454)-Venegas Ocampo,P (2225) Mexico City Icaro op 2007 (4)}) 14... O-O {[%emt 0:05:59]} 15. a3 {[%emt 0:00:35]} Nxd3 {[%emt 0:04:47]} 16. cxd3 {[%emt 0:00:07][%cal Oc3b5]} Nf5 {[%emt 0:01:11]} 17. Qf2 {[%emt 0:00:58][%cal Oc3d5]} Qd8 {[%emt 0:04:07]} 18. g4 {[%emt 0:04:04]} Ne7 {[%emt 0:01:13]} 19. Nc5 {[%emt 0:03:02]} Bc8 {[%emt 0:04:04]} 20. Ne2 {[%emt 0:04:14]} f6 {[%emt 0:06:26]} 21. Nd4 {[%emt 0:08:48] White has more active pieces.} Qb6 {[%emt 0:01:54]} 22. exf6 {[%emt 0:01:31][%csl Oe6] White attacks a weakness} Rxf6 {[%emt 0:01:46]} 23. Qe3 {[%emt 0:10:52][%cal Of4f5] and f5! would now be decisive} Ng6 {[%emt 0:06:03][%cal Oe6e5]} 24. g5 {[%emt 0:03:23]} Rf7 {[%emt 0:02:09]} 25. b4 {[%emt 0:00:21]} (25. Ncxe6 $6 Bxe6 26. f5 Bxf5 27. Rxf5 Rff8 (27... Qxb2 $2 28. Rxf7 Kh8 29. Rcf1 $18) 28. Rxf8+ Rxf8 $15) (25. Rf2 $14) 25... a5 $11 {[%emt 0:03:33]} 26. Na4 {[%emt 0:06:18] A dynamic duo of knights.} (26. Ncxe6 Bxe6 27. f5 Bxf5 28. bxa5 Rxa5 (28... Qxa5 29. Nxf5 Qd8 30. Nd4 $15) 29. Nxf5 Qxe3+ 30. Nxe3 Rxf1+ (30... Rxa3 31. Rc8+ Rf8 32. Rcxf8+ Nxf8 33. Nf5 $15) 31. Kxf1 Rxa3 32. Nxd5 (32. Rc8+ Kf7 $15) 32... Rxd3 $11) 26... Qd8 {[%emt 0:01:04] White must now prevent ...axb4.} 27. Ne2 $2 {[%emt 0:01:01] [#]} (27. Nxe6 $2 {perishes.} Bxe6 28. Qxe6 axb4 $19 (28... Nxf4 $2 29. Qg4 $19)) (27. b5 $11 {and White has nothing to worry.}) 27... Bd7 $2 {[%emt 0:07:49] Weighted Error Value: White=0.26 (precise) /Black=0.05 (flawless)   Loses game:     	White=1     	---        Missed win:     	---       	Black=1      Mistake:       	White=1     	---        Inaccurate:     	White=1     	Black=1      OK:         	White=9     	Black=8} (27... e5 $1 $19 28. fxe5 d4 29. Nxd4 Rxf1+ 30. Rxf1 axb4) 1/2-1/2

[Event "8th Montevideo Open 2025"]
[Site "Montevideo"]
[Date "2025.02.06"]
[Round "6.2"]
[White "Coppola, Claudio"]
[Black "Villca, Julian"]
[Result "1-0"]
[Annotator "TA"]
[ECO "C54"]
[WhiteElo "2220"]
[BlackElo "2413"]
[PlyCount "63"]
[EventDate "2025.02.01"]
[EventType "swiss"]
[EventCountry "URU"]
[SourceTitle "playchess.com"]
[Source "ChessBase"]
[SourceQuality "1"]
[TimeControl "5400+30"]

{[%evp 9,63,16,22,13,33,9,16,8,14,15,13,8,20,22,18,13,22,11,20,6,-4,-25,62,51,70,48,173,178,366,372,362,369,382,378,397,393,391,398,388,395,420,422,420,420,406,406,433,430,452,453,463,464,535,535,568,564]} 1. e4 {[%emt 0:03:15]} e5 {[%emt 0:03:39]} 2. Nf3 {[%emt 0:00:06]} Nc6 {[%emt 0:00:03]} 3. Bc4 {[%emt 0:00:05]} Bc5 {[%emt 0:00:06]} 4. c3 {[%emt 0:00:10]} Nf6 {[%emt 0:00:05]} 5. d3 {[%emt 0:00:06]} a5 {[%emt 0:00:03]} 6. O-O {[%emt 0:06:14] d4 poses a challenge C54: Giuoco Piano: 4 c3 Nf6, main lines with 5 d4 and 5 d3.} d6 {[%emt 0:00:06]} 7. Nbd2 {[%emt 0:00:05]} O-O {[%emt 0:00:10]} 8. h3 {[%emt 0:02:02] The position is equal.} Ba7 {[%emt 0:00:07]} 9. Re1 {[%emt 0:00:07]} Be6 {[%emt 0:00:05]} 10. Bb5 {[%emt 0:00:22]} Ne7 {[%emt 0:00:06]} 11. d4 {[%emt 0:01:17]} c6 {[%emt 0:00:04]} 12. Bd3 {[%emt 0:01:25]} Ng6 {[%emt 0:00:09]} 13. Nf1 {[%emt 0:01:05][%cal Bd2f1,Bf1e3,Be3f5][%mdl 32]} Nh5 {[%emt 0:01:04]} 14. Ne3 {[%emt 0:06:59]} Nhf4 {[%emt 0:00:28]} 15. Bc2 {[%emt 0:00:48]} h6 $146 {[%emt 0:24:59]} (15... exd4 $11 16. cxd4 d5) (15... exd4 16. cxd4 d5 17. e5 Nh4 18. Nxh4 Qxh4 19. Ng4 Bxg4 20. hxg4 Ne6 21. Be3 c5 {0-1 Ayala Delgado,S (2041)-Cordoba Roa,A (2341) COL-chT sf Medellin 2024 (5.2)}) 16. Nf5 $14 {[%emt 0:01:32]} exd4 {[%emt 0:08:27]} 17. N3xd4 {[%emt 0:16:49] [#] and Qf3 should not be overlooked} Bxd4 {[%emt 0:15:59] A mistake that costs the game.} (17... Re8 $14) 18. Qxd4 $18 {[%emt 0:01:39][%csl Gf5][%cal Rd4g7]} (18. Nxd4 Qg5 19. g3 (19. Bxf4 Nxf4 20. g3 Nxh3+ 21. Kf1 Rad8 $11) 19... Nxh3+ 20. Kf1 Qf6 $11) 18... Bxf5 $2 {[%emt 0:22:19]} (18... Nh5 {was necessary.} 19. Qd1 (19. Qxd6 a4 $16) (19. Nxd6 Nhf4 $18) 19... Nf6 20. Nxd6 (20. Qxd6 Bxf5 21. Qxd8 Rfxd8 $18) 20... Qc7) 19. exf5 {[%emt 0:03:36]} Qg5 {[%emt 0:03:35][%csl Gf4][%cal Rg5g2]} 20. g3 {[%emt 0:01:34]} (20. fxg6 $2 Qxg2#) 20... Ne5 {[%emt 0:03:40][%cal Bg6e5,Be5f3,Bf3e1][%mdl 32]} 21. Qxf4 {[%emt 0:04:31]} (21. Bxf4 $2 {too greedy.} Nf3+ 22. Kg2 Nxd4 $19) 21... Qxf4 {[%emt 0:00:08]} 22. Bxf4 {[%emt 0:00:14]} Nf3+ {[%emt 0:00:03]} 23. Kf1 {[%emt 0:02:12]} Nxe1 {[%emt 0:00:17]} 24. Rxe1 {[%emt 0:00:03]} Rfe8 {[%emt 0:07:06]} 25. Rxe8+ {[%emt 0:01:02]} Rxe8 {[%emt 0:00:01]} 26. Bxd6 {[%emt 0:00:26]} Rd8 {[%emt 0:00:06]} 27. Bf4 {[%emt 0:00:22]} Rd5 {[%emt 0:00:07]} 28. c4 {[%emt 0:05:20] White is clearly winning.} Rd4 {[%emt 0:00:53]} 29. b3 {[%emt 0:00:30][%cal Bb2b3,Bb3a4][%mdl 32]} Rd7 {[%emt 0:00:39]} 30. h4 {[%emt 0:01:56]} a4 {[%emt 0:00:09]} 31. bxa4 {[%emt 0:02:09]} Kf8 {[%emt 0:01:38] [#]} 32. f6 $1 {[%emt 0:00:34] Weighted Error Value: White=0.05 (flawless) /Black=0.34  Mistake:       	---       	Black=3      OK:         	White=13    	Black=8      Best:        	White=1     	Black=1} 1-0

[Event "8th Montevideo Open 2025"]
[Site "Montevideo"]
[Date "2025.02.06"]
[Round "6.3"]
[White "Mussanti, Diego"]
[Black "Hoffman, Alejandro"]
[Result "1-0"]
[Annotator "TA"]
[ECO "B79"]
[WhiteElo "2173"]
[BlackElo "2368"]
[PlyCount "57"]
[EventDate "2025.02.01"]
[EventType "swiss"]
[EventCountry "URU"]
[SourceTitle "playchess.com"]
[Source "ChessBase"]
[SourceQuality "1"]
[TimeControl "5400+30"]

{[%evp 28,57,104,69,76,84,83,83,129,116,148,133,116,153,412,408,385,379,610,564,549,355,438,411,517,513,482,478,889,857,876,853]} 1. e4 {[%emt 0:00:04]} c5 {[%emt 0:00:10]} 2. Nf3 {[%emt 0:00:15]} d6 {[%emt 0:00:07]} 3. d4 {[%emt 0:00:21]} cxd4 {[%emt 0:00:08]} 4. Nxd4 {[%emt 0:00:12]} Nf6 {[%emt 0:00:07]} 5. Nc3 {[%emt 0:00:12]} g6 {[%emt 0:00:08]} 6. Be3 {[%emt 0:00:23]} Bg7 {[%emt 0:00:09]} 7. f3 {[%emt 0:00:10]} O-O {[%emt 0:00:10]} 8. Qd2 {[%emt 0:00:09]} Nc6 {[%emt 0:00:09]} 9. Bc4 {[%emt 0:00:19]} Bd7 {[%emt 0:00:08]} 10. O-O-O {[%emt 0:00:17]} Qa5 {[%emt 0:00:26]} 11. Bb3 {[%emt 0:00:41]} Rfc8 {[%emt 0:00:26]} 12. g4 {[%emt 0:00:43]} Ne5 {[%emt 0:02:05]} 13. h4 {[%emt 0:04:18]} Nc4 {[%emt 0:12:00]} 14. Bxc4 {[%emt 0:00:36]} Rxc4 {[%emt 0:00:09]} 15. Nb3 {[%emt 0:00:27]} Qa6 {[%emt 0:03:15] [#] B79: Sicilian Dragon: Yugoslav Attack, 9 Bc4 Bd7 10 0-0-0 Qa5.} 16. e5 $1 {[%emt 0:00:27]} Ne8 {[%emt 0:03:27]} 17. h5 {[%emt 0:01:33]} Rxc3 {[%emt 0:24:51]} 18. bxc3 $16 {[%emt 0:02:09]} (18. Qxc3 $6 Qxa2 19. hxg6 hxg6 $11) 18... Be6 {[%emt 0:04:59]} (18... Qxa2 19. hxg6 Be6 (19... hxg6 $2 20. Qh2 $18) 20. Qh2 (20. gxh7+ Kh8 $18) (20. Rxh7 Qa3+ 21. Kb1 Bxb3 $11) 20... Bxb3 21. Qxh7+ (21. cxb3 Qa1+ 22. Kd2 Qa2+ 23. Kd3 Qxh2 $18) 21... Kf8 22. cxb3 Qxb3 23. Rd3 Qa3+ 24. Kd1 dxe5 25. gxf7 $18) 19. hxg6 {[%emt 0:13:38]} fxg6 {[%emt 0:00:42]} 20. Qh2 $146 {[%emt 0:13:46]} (20. Kb1 dxe5 21. Qh2 Nf6 22. Bg5 Nd5 23. Rd3 Kf7 24. Rhd1 Qc4 25. Qd2 Rd8 26. Kb2 Rd6 27. Re1 b5 {½-½ Smirnov,P (2575)-Kurayan,R (2242) Voronezh op-A 13th 2009 (9)}) 20... h6 {[%emt 0:01:39] A mistake that costs the game.} (20... dxe5 $16 {keeps fighting.} 21. Qxh7+ Kf7) 21. Bxh6 $18 {[%emt 0:04:32]} Bxe5 {[%emt 0:00:44] [#]} 22. Bf4 {[%emt 0:00:40]} Bxc3 {[%emt 0:02:11]} (22... Bg7 23. Qh7+ Kf7) 23. Qh7+ {[%emt 0:16:34]} Kf8 {[%emt 0:00:07] ( -> ...Qa3+)} 24. Rd3 {[%emt 0:01:48]} (24. Qxg6 $2 {leads to mate.} Qa3+ 25. Kb1 Qb2#) 24... Bg7 {[%emt 0:04:22]} 25. Bh6 {[%emt 0:01:25] Active counter play!} (25. Qxg6 Bf7 26. Qf5 Qxa2 $18) 25... Rc8 {[%emt 0:05:18]} 26. Bxg7+ {[%emt 0:01:41] White is clearly winning.} ({Less strong is} 26. Qxg6 Rxc2+ 27. Kd1 (27. Kxc2 Qxa2+ 28. Kd1 Bxb3+ 29. Rxb3 Qxb3+ 30. Ke2 Bxh6 $11) 27... Rxa2 28. Bxg7+ Nxg7 29. Rh8+ Bg8 $16) 26... Nxg7 {[%emt 0:00:10]} 27. Qxg6 {[%emt 0:03:48] Rh7 is the strong threat.} Qxa2 {[%emt 0:14:17]} (27... Bg8 $142 28. Kb1 Qc4) 28. Rh8+ {[%emt 0:03:54]} Bg8 {[%emt 0:00:16] [#]} 29. Rd4 $1 {[%emt 0:02:48] Weighted Error Value: White=0.26 (precise) /Black=1.35  Loses game:     	---       	Black=1      Mistake:       	---       	Black=3      OK:         	White=7     	Black=2      Best:        	White=4     	---} 1-0

[Event "8th Montevideo Open 2025"]
[Site "Montevideo"]
[Date "2025.02.06"]
[Round "6.4"]
[White "Brizzi, Milagros Tatiana"]
[Black "Villegas, Franco"]
[Result "0-1"]
[Annotator "TA"]
[ECO "A05"]
[WhiteElo "2150"]
[BlackElo "2325"]
[PlyCount "100"]
[EventDate "2025.02.01"]
[EventType "swiss"]
[EventCountry "URU"]
[SourceTitle "playchess.com"]
[Source "ChessBase"]
[SourceQuality "1"]
[TimeControl "5400+30"]

{[%evp 16,99,-2,-14,14,24,17,7,24,0,9,0,30,9,56,15,46,58,86,41,76,88,135,126,129,123,173,162,178,160,164,170,176,151,172,122,276,194,181,208,257,179,168,168,187,64,195,-100,-86,-90,-91,-422,-343,-312,-297,-332,-318,-352,0,-8,0,0,0,-201,-195,-205,-29,-205,-206,-177,-202,-210,-214,-289,-252,-279,-286,-279,-260,-454,-445,-29997,-29998,-29998,-29999,-29999]} 1. e4 {[%emt 0:00:05]} c5 {[%emt 0:05:57]} 2. Nf3 {[%emt 0:00:14]} d6 {[%emt 0:00:13]} 3. d3 {[%emt 0:00:40]} g6 {[%emt 0:00:16]} 4. g3 {[%emt 0:00:24]} Bg7 {[%emt 0:00:12]} 5. Bg2 {[%emt 0:00:28]} Nc6 {[%emt 0:00:13]} 6. O-O {[%emt 0:00:40]} Nf6 {[%emt 0:00:23]} 7. c3 {[%emt 0:01:31]} O-O {[%emt 0:00:22]} 8. Re1 {[%emt 0:00:31]} e5 {[%emt 0:00:21]} 9. a3 {[%emt 0:01:15]} a5 {[%emt 0:01:09] A05: Réti Opening: 1 Nf3 Nf6.} 10. a4 {[%emt 0:01:07]} h6 {[%emt 0:01:20]} 11. Na3 {[%emt 0:01:18]} Re8 {[%emt 0:02:33] The position is equal.} 12. Nc4 {[%emt 0:03:54]} Be6 {[%emt 0:01:27]} 13. Nfd2 {[%emt 0:04:29][%cal Bf3d2,Bd2f1,Bf1e3][%mdl 32] The position is symmetric and equal} Qc7 $146 {[%emt 1:22:34]} (13... Rb8 14. Na3 d5 15. exd5 Bxd5 16. Ne4 Nxe4 17. dxe4 Be6 18. Qe2 b6 19. Be3 Qe7 {½-½ Chigaev,M (2579)-Kanep,M (2515) Liepajas Rokade op 2017 (6)}) 14. Qb3 {[%emt 0:04:51]} Rad8 {[%emt 0:00:00]} (14... Red8 $11) 15. Qb5 {[%emt 1:16:33]} Nd7 {[%emt 0:00:00]} 16. Nf1 {[%emt 0:00:00]} Na7 {[%emt 0:00:00]} 17. Qb3 {[%emt 0:00:00]} Rb8 {[%emt 0:00:00]} 18. Nfe3 {[%emt 0:00:00]} b5 {[%emt 0:00:00]} (18... Nf6 $142) 19. axb5 $16 {[%emt 0:00:00][%csl Ob5] White has a strong passed pawn} Rxb5 {[%emt 0:00:00]} 20. Qc2 {[%emt 0:00:00]} Nc6 {[%emt 0:00:00]} (20... Nf6 $16) 21. Nd5 $18 {[%emt 0:00:00]} Bxd5 {[%emt 0:00:00]} 22. exd5 {[%emt 0:00:00]} Ne7 {[%emt 0:04:30]} 23. Qa4 {[%emt 0:04:00][%csl LRa5,LRb5]} Reb8 {[%emt 0:00:30]} 24. Nxa5 {[%emt 0:00:00]} Nf6 25. Nc6 {[%emt 0:01:00]} (25. f4 $18) 25... R8b7 $2 {[%emt 0:01:00]} (25... Nxc6 $16 26. dxc6 d5) 26. Qa8+ {[%emt 0:00:00]} Kh7 {[%emt 0:00:30]} 27. c4 {[%emt 0:00:00]} R5b6 {[%emt 0:00:00]} 28. f4 {[%emt 0:00:00][%cal Rf4e5]} Nf5 {[%emt 0:00:00]} 29. fxe5 {[%emt 0:00:00]} dxe5 {[%emt 0:00:00]} 30. Nxe5 {[%emt 0:00:00]} ({White should play} 30. Qa5 $18) 30... Nh5 {[%emt 0:00:00]} (30... Rb8 $14 31. Qa7 R8b7) 31. Bf4 $2 {[%emt 0:00:00]} (31. d6 $1 $18 {[%cal Rd6c7]} Qxd6 32. Bxb7 Qd4+ 33. Kg2) 31... Nxf4 $1 $17 {[%emt 0:00:00]} (31... Rxb2 32. Nxg6 Qd7 33. Be5 (33. Ne5 $2 Nxf4 34. gxf4 Bxe5 $19) 33... Rxg2+ (33... Kxg6 34. Bxb2 Rxb2 35. Qc6+ Qxc6 36. dxc6 $18) 34. Kxg2 $15) 32. gxf4 {[%emt 0:00:00][%cal Od5d6]} (32. d6 $2 Qxd6 (32... Nxd6 33. gxf4 Rb8 34. Qa7 $11) 33. gxf4 Qd4+ 34. Kh1 Rxb2 $19) 32... Rxb2 {[%emt 0:00:00]} 33. Qa5 $2 {[%emt 0:00:00][%mdl 8192]} (33. d6 $17 Qxd6 (33... Rxg2+ 34. Kxg2 Nxd6 35. Reb1 $18) 34. Bd5 (34. Bxb7 $2 Qd4+ 35. Kh1 Qxf4 $19)) 33... Nh4 {[%emt 0:00:00]} 34. Qxc7 {[%emt 0:00:00]} Rxg2+ {[%emt 0:00:00]} 35. Kf1 {[%emt 0:00:00]} Rxc7 {[%emt 0:00:00]} 36. d6 {[%emt 0:00:00]} Rb7 {[%emt 0:00:00]} ({Black should try} 36... Rc8 $1 $19 37. Ra7 Rd8 (37... Rxh2 $2 38. Rxf7 Ra8 39. Ng4 $19) 38. Nxf7 Rb8) 37. Reb1 $132 {[%emt 0:03:07][%mdl 2048] White has counterplay} Rd7 {[%emt 0:00:00]} 38. Nxd7 {[%emt 0:00:25]} Bd4 {[%emt 0:00:00] Strongly threatening ...Rf2+.} 39. Ne5 $2 {[%emt 0:02:22]} Rf2+ $19 {[%emt 0:00:00][%mdl 1024] Black has strong compensation.} 40. Ke1 {[%emt 0:00:47][%cal Oe5g4]} Ng2+ {[%emt 0:00:00]} 41. Kd1 {[%emt 0:00:23][%cal Oe5g4] [#]} Bc3 $1 {[%emt 0:00:00]} (41... Nxf4 $2 42. Ng4 (42. Nxf7 Bxa1 43. Rb7 Rf1+ 44. Kd2 Rf2+ 45. Kd1 Rxh2 $11) 42... Rg2 43. Ra7 $18 (43. d7 Bc3 $18)) (41... Ne3+ 42. Ke1 Nc2+ (42... Rxh2 43. Rc1 $15) 43. Kd1 Ne3+ (43... Bxa1 $2 44. Rxa1 Ne3+ 45. Kc1 $18) (43... Nxa1 44. d7 $11) 44. Ke1 Ng2+ 45. Kd1 $15) 42. Ng4 {[%emt 0:00:51] Repels Ne3+} Rd2+ {[%emt 0:00:00]} 43. Kc1 {[%emt 0:01:05] Black must now prevent Ra7.} Nxf4 {[%emt 0:00:00][%cal Rf4d3]} 44. Rb7 {[%emt 0:00:00]} (44. Nf6+ Kg7 45. Ne8+ Kf8 $19) 44... Ne2+ {[%emt 0:00:00]} (44... Nxd3+ 45. Kb1 Bxa1 46. Kxa1 $17) 45. Kb1 {[%emt 0:00:00]} Rd1+ {[%emt 0:00:00]} 46. Kc2 {[%emt 0:00:09]} Rxa1 {[%emt 0:00:00]} (46... Bxa1 $2 47. Kxd1 (47. Rxf7+ Kg8 $18) 47... Nd4 48. Rxf7+ Kg8 49. Nxh6+ Kh8 50. d7 $18) 47. Rxf7+ $2 {[%emt 0:00:34] [#]} (47. d4 Ra2+ (47... Bxd4 48. Rxf7+ Bg7 49. d7 $17) (47... Nxd4+ 48. Kxc3 Rc1+ 49. Kd2 $16) 48. Kb1 Ra1+ 49. Kc2) 47... Kh8 $1 {[%emt 0:00:00] ( -> ...Rc1+)} 48. d7 {[%emt 0:01:15]} ({Not} 48. Rf8+ $2 Kg7 49. d4 Kxf8) (48. d4 $19 Ra2+ (48... Bxd4 $2 {too greedy.} 49. d7 $18) 49. Kd3 Rd2+ (49... Bxd4 $2 50. d7 $18) 50. Ke3 Nxd4 (50... Bxd4+ 51. Kxd2 Kg8 52. Nxh6+ Kh8 53. Kxe2 $18) 51. Nxh6 Nc2+ (51... Rxh2 $2 52. Ng4 $19) 52. Kf4) 48... Rc1+ {[%emt 0:00:00] Black mates.} 49. Kb3 {[%emt 0:00:21]} Nd4+ {[%emt 0:00:00]} 50. Ka4 {[%emt 0:00:30]} Ra1# {[%emt 0:00:00] Weighted Error Value: White=0.65/Black=0.39  Loses game:     	White=3     	---        Missed win:     	White=1     	Black=1      Mistake:       	White=4     	Black=5      Inaccurate:     	White=4     	Black=4      OK:         	White=10    	Black=6      Best:        	White=4     	Black=10     Strong:       	---       	Black=3} 0-1